bitfinex/quotes_BTCUSD_20260104
["timestamp","ask_amount","ask_price","bid_price","bid_amount"]
[1767532914333,0.08791555,91026.0,91017.0,0.01098695]
[1767532914537,0.06591614,91025.0,91015.0,0.11264183]
[1767532915321,0.01098611,91024.0,91016.0,0.06592246]
[1767532915842,0.01098599,91025.0,91016.0,0.04101645]
[1767532916179,0.01098575,91027.0,91025.0,0.000891]
[1767532916324,0.01098587,91026.0,91018.0,0.01098683]
[1767532916765,0.01098599,91025.0,91017.0,0.01098695]
[1767532917521,0.01098599,91025.0,91017.0,0.06566098]
[1767532917715,0.06591527,91026.0,91017.0,0.11209384]
[1767532918028,0.06591527,91026.0,91018.0,0.04671867]
[1767532918545,0.01098599,91025.0,91017.0,0.01044046]
[1767532919262,0.01098599,91025.0,91017.0,0.06537522]
[1767532919421,0.01098599,91025.0,91017.0,0.01044046]
[1767532920221,0.01098599,91025.0,91017.0,0.06537498]
[1767532920422,0.06591553,91026.0,91018.0,0.01098683]
[1767532920423,0.01098587,91026.0,91018.0,0.01098683]
[1767532920861,0.07708005,91030.0,91020.0,0.01098659]
[1767532921078,0.07708005,91030.0,91023.0,0.01098623]
[1767532921079,0.0001528,91030.0,91023.0,0.01098623]
[1767532921283,0.0001528,91030.0,91024.0,0.01098611]
[1767532921912,0.0001528,91030.0,91023.0,0.06563138]
[1767532922084,0.04920105,91029.0,91023.0,0.02661749]
[1767532922303,0.04920105,91029.0,91024.0,0.05493002]
[1767532922479,0.04920105,91029.0,91021.0,0.06591884]
[1767532922683,0.04920105,91029.0,91022.0,0.01098635]
[1767532922952,0.01098382,91043.0,91033.0,0.01098502]
[1767532923169,0.0109837,91044.0,91042.0,0.13137981]
[1767532923405,0.06590233,91044.0,91042.0,0.13073381]
[1767532923633,0.01098357,91045.0,91042.0,0.17610158]
[1767532923861,0.06590075,91046.0,91042.0,0.15301722]
[1767532924087,0.01098345,91046.0,91043.0,0.04536777]
[1767532924297,0.01098333,91047.0,91043.0,0.04536777]
[1767532925292,0.01098345,91046.0,91043.0,0.04536777]
[1767532925495,0.06590013,91047.0,91043.0,0.04536777]
[1767532925703,0.01098345,91046.0,91043.0,0.04536777]
[1767532925907,0.06589929,91048.0,91043.0,0.04536777]
[1767532926456,0.02226123,91049.0,91043.0,0.04536777]
[1767532926667,0.02226123,91049.0,91048.0,0.04536777]
[1767532926878,0.00026123,91049.0,91048.0,0.04536777]
[1767532927483,0.00026123,91049.0,91048.0,0.03261115]
[1767532928046,0.03298261,91053.0,91052.0,0.04536777]
[1767532928263,0.08789597,91053.0,91052.0,0.04536777]
[1767532928660,0.022,91053.0,91052.0,0.04536777]
[1767532929623,0.01098177,91060.0,91053.0,0.04636677]
[1767532929791,0.01098177,91060.0,91056.0,0.17703334]
[1767532930127,0.01113372,91067.0,91057.0,0.04508211]
[1767532930255,0.0001528,91067.0,91059.0,0.05634966]
[1767532930460,0.05490328,91070.0,91067.0,0.04536777]
[1767532930680,0.01098044,91071.0,91067.0,0.04536777]
[1767532930858,0.07690167,91072.0,91067.0,0.04508215]
[1767532931079,0.022,91072.0,91067.0,0.04508215]
[1767532931243,0.021001,91072.0,91067.0,0.04508215]
[1767532931640,0.03297947,91079.0,91070.0,0.13166557]
[1767532931846,0.01097959,91078.0,91070.0,0.13166557]
[1767532932718,0.01097972,91077.0,91070.0,0.13166557]
[1767532932922,0.000999,91070.0,91065.0,0.01098116]
[1767532933261,0.000999,91070.0,91063.0,0.0109814]
[1767532933411,0.01098008,91074.0,91063.0,0.0109814]
[1767532933619,0.06588066,91074.0,91064.0,0.01098128]
[1767532933934,0.01098008,91074.0,91066.0,0.04536777]
[1767532934135,0.06587977,91075.0,91066.0,0.05634881]
[1767532934340,0.01098008,91074.0,91066.0,0.04536777]
[1767532934497,0.06587912,91076.0,91066.0,0.04536777]
[1767532934699,0.01097984,91076.0,91068.0,0.04536777]
[1767532934920,0.01098008,91074.0,91068.0,0.04436877]
[1767532935122,0.08823822,91079.0,91074.0,0.04636677]
[1767532935293,0.06587874,91077.0,91074.0,0.04636677]
[1767532935500,0.01097972,91077.0,91074.0,0.04636677]
[1767532935877,0.06588049,91074.0,91068.0,0.04536777]
[1767532936079,0.01098008,91074.0,91068.0,0.04536777]
[1767532936283,0.06588078,91074.0,91064.0,0.01098128]
[1767532936425,0.06588078,91074.0,91064.0,0.06588767]
[1767532936625,0.06588078,91074.0,91064.0,0.11125544]
[1767532936848,0.06587989,91075.0,91066.0,0.04536777]
[1767532937266,0.01097996,91075.0,91067.0,0.01098092]
[1767532937440,0.01097996,91075.0,91066.0,0.05634881]
[1767532937860,0.01098008,91074.0,91066.0,0.04536777]
[1767532938083,0.01097996,91075.0,91066.0,0.05634881]
[1767532938663,0.0109802,91073.0,91066.0,0.04536777]
[1767532938840,0.01097996,91075.0,91066.0,0.04536777]
[1767532938841,0.01098008,91074.0,91066.0,0.04536777]
[1767532939207,0.06588001,91075.0,91066.0,0.05634881]
[1767532939761,0.06588001,91075.0,91062.0,0.022]
[1767532939956,0.01098008,91074.0,91065.0,0.01098116]
[1767532940125,0.01098032,91072.0,91063.0,0.0109814]
[1767532940328,0.01098008,91074.0,91065.0,0.01098116]
[1767532940641,0.0109802,91073.0,91062.0,0.0878889]
[1767532941010,0.0109802,91073.0,91064.0,0.01098128]
[1767532942068,0.01098008,91074.0,91065.0,0.01098116]
[1767532942989,0.0109802,91073.0,91065.0,0.01098116]
[1767532943197,0.01098008,91074.0,91065.0,0.01098116]
[1767532943402,0.01098008,91074.0,91065.0,0.06588698]
[1767532943616,0.01098008,91074.0,91065.0,0.01098116]
[1767532944698,0.06588091,91075.0,91066.0,0.01098104]
[1767532944847,0.01098008,91074.0,91065.0,0.06588692]
[1767532945046,0.06588091,91075.0,91066.0,0.01098104]
[1767532945300,0.01098044,91071.0,91062.0,0.06736777]
[1767532945458,0.06588131,91073.0,91063.0,0.06588787]
[1767532945659,0.01097959,91078.0,91065.0,0.01069557]
[1767532945886,0.0658785,91077.0,91067.0,0.05634869]
[1767532946059,0.0658785,91077.0,91069.0,0.04536777]
[1767532946262,0.01097972,91077.0,91069.0,0.04536777]
[1767532946889,0.01097984,91076.0,91069.0,0.04536777]
[1767532947101,0.06623837,91079.0,91076.0,0.000999]
[1767532947466,0.01097959,91078.0,91069.0,0.11125137]
[1767532947688,0.01097959,91078.0,91070.0,0.04536777]
[1767532947892,0.06623837,91079.0,91070.0,0.04536777]
[1767532948071,0.01097959,91078.0,91070.0,0.04536777]
[1767532949747,0.01097972,91077.0,91070.0,0.04536777]
[1767532950148,0.0109802,91073.0,91070.0,0.04536777]
[1767532950354,0.0109802,91073.0,91067.0,0.00049945]
[1767532950355,0.01098032,91072.0,91067.0,0.04702413]
[1767532950553,0.0109802,91073.0,91067.0,0.04702413]
[1767532950870,0.01098032,91072.0,91067.0,0.04702413]
[1767532951262,0.0109802,91073.0,91067.0,0.04702413]
[1767532951878,0.06588074,91074.0,91067.0,0.04702413]
[1767532952808,0.01098032,91072.0,91067.0,0.04702413]
[1767532953134,0.06588167,91073.0,91067.0,0.04702413]
[1767532953806,0.01098032,91072.0,91067.0,0.04702413]
[1767532954210,0.01098008,91074.0,91067.0,0.04702413]
[1767532954494,0.05490005,91075.0,91067.0,0.04702413]
[1767532954713,0.06588001,91075.0,91067.0,0.04702413]
[1767532954915,0.01097996,91075.0,91067.0,0.05800505]
[1767532955113,0.0658796,91076.0,91067.0,0.04702413]
[1767532955293,0.01097996,91075.0,91067.0,0.04702413]
[1767532955459,0.0658796,91076.0,91067.0,0.05800505]
[1767532956133,0.06587759,91078.0,91068.0,0.06588436]
[1767532956279,0.05525875,91079.0,91076.0,0.000999]
[1767532956485,0.0662383,91079.0,91076.0,0.000999]
[1767532956713,0.01134082,91079.0,91070.0,0.06588333]
[1767532957112,0.01134082,91079.0,91070.0,0.11234304]
[1767532957516,0.05489863,91077.0,91070.0,0.04645971]
[1767532958183,0.01097959,91078.0,91070.0,0.04645971]
[1767532958354,0.06623821,91079.0,91070.0,0.04645971]
[1767532958547,0.01097959,91078.0,91070.0,0.04645971]
[1767532958913,0.23056163,91082.0,91079.0,0.04645971]
[1767532958914,0.05489632,91081.0,91079.0,0.04645971]
[1767532959140,0.05489632,91081.0,91078.0,0.000999]
[1767532959141,0.00010834,91081.0,91078.0,0.02256264]
[1767532959367,0.01097947,91079.0,91071.0,0.04645971]
[1767532959567,0.01316477,91078.0,91071.0,0.04645971]
[1767532960476,0.02414436,91078.0,91071.0,0.04617414]
[1767532961307,0.02414436,91078.0,91071.0,0.0458886]
[1767532961457,0.01316477,91078.0,91071.0,0.0458886]
[1767532961659,0.01316477,91078.0,91071.0,0.05686904]
[1767532961862,0.01316477,91078.0,91072.0,0.01098032]
[1767532962022,0.01316477,91078.0,91073.0,0.0109802]
[1767532962259,0.01316477,91078.0,91074.0,0.0658804]
[1767532962456,0.00010834,91081.0,91077.0,0.01097972]
[1767532962659,0.00010834,91081.0,91076.0,0.05743955]
[1767532962861,0.00010834,91081.0,91075.0,0.06587872]
[1767532963099,0.00010834,91081.0,91075.0,0.01097996]
[1767532963768,0.00010834,91081.0,91077.0,0.04645971]
[1767532964378,0.00010834,91081.0,91077.0,0.11233779]
[1767532964585,0.00010834,91081.0,91077.0,0.05743943]
[1767532965012,0.00010834,91081.0,91074.0,0.01098008]
[1767532965314,0.00010834,91081.0,91076.0,0.01097984]
[1767532966704,0.00010834,91081.0,91076.0,0.06587896]
[1767532966937,0.00010834,91081.0,91077.0,0.03472683]
[1767532967112,0.00010834,91081.0,91078.0,0.03472683]
[1767532967495,0.00010834,91081.0,91076.0,0.06587896]
[1767532967725,0.00010834,91081.0,91077.0,0.01097972]
[1767532969093,0.00010834,91081.0,91075.0,0.01097996]
[1767532969441,0.01097887,91084.0,91073.0,0.0109802]
[1767532969696,0.01097911,91082.0,91072.0,0.06588192]
[1767532969896,0.01097911,91082.0,91073.0,0.0109802]
[1767532970024,0.06587408,91083.0,91073.0,0.06588118]
[1767532970226,0.0658734,91084.0,91074.0,0.01098008]
[1767532970437,0.0658734,91084.0,91075.0,0.01097996]
[1767532970618,0.01097899,91083.0,91074.0,0.06588007]
[1767532970819,0.01097899,91083.0,91074.0,0.01098008]
[1767532971124,0.01097899,91083.0,91075.0,0.01097996]
[1767532972253,0.01097899,91083.0,91074.0,0.0537621]
[1767532972679,0.01097899,91083.0,91074.0,0.06474218]
[1767532972856,0.0658734,91084.0,91075.0,0.01097996]
[1767532973058,0.01097899,91083.0,91074.0,0.06474218]
[1767532973288,0.0001528,91085.0,91076.0,0.06587853]
[1767532973464,0.01113155,91085.0,91077.0,0.01097972]
[1767532973667,0.01113155,91085.0,91076.0,0.01097984]
[1767532974213,0.0001528,91085.0,91077.0,0.01097972]
[1767532974417,0.0001528,91085.0,91078.0,0.01097959]
[1767532975123,0.04665164,91084.0,91078.0,0.01097959]
[1767532975339,0.04665164,91084.0,91074.0,0.00550441]
[1767532975509,0.04665164,91084.0,91077.0,0.06587782]
[1767532975885,0.0001528,91085.0,91077.0,0.01097972]
[1767532976094,0.0001528,91085.0,91078.0,0.04645971]
[1767532977114,0.0001528,91085.0,91077.0,0.06587823]
[1767532978146,0.0001528,91085.0,91077.0,0.01097972]
[1767532978439,0.0001528,91085.0,91076.0,0.06587864]
[1767532979289,0.0001528,91085.0,91077.0,0.01097972]
[1767532980142,0.0001528,91085.0,91078.0,0.04645971]
[1767532980345,0.05504689,91085.0,91078.0,0.04645971]
[1767532980814,0.01097923,91081.0,91072.0,0.06588168]
[1767532981062,0.0001528,91085.0,91074.0,0.04834416]
[1767532981248,0.0001528,91085.0,91078.0,0.05932375]
[1767532981466,0.0004,91091.0,91081.0,0.01097923]
[1767532981807,0.0004,91091.0,91085.0,0.06602438]
[1767532981808,0.02236,91091.0,91085.0,0.06602438]
[1767532982139,0.02236,91091.0,91087.0,0.04834416]
[1767532982885,0.0004,91091.0,91088.0,0.04834416]
[1767532984779,0.0004,91091.0,91088.0,0.05932255]
[1767532985370,0.0004,91091.0,91088.0,0.04834416]
[1767532985781,0.0004,91100.0,91093.0,0.04834416]
[1767532985989,0.0113767,91102.0,91092.0,0.01097791]
[1767532986167,0.02723657,91103.0,91093.0,0.04834416]
[1767532986595,0.0109767,91102.0,91093.0,0.05932195]
[1767532986803,0.01097682,91101.0,91093.0,0.04834416]
[1767532987951,0.0109767,91102.0,91093.0,0.05932195]
[1767532988150,0.0109767,91102.0,91092.0,0.01586746]
[1767532988151,0.04722499,91101.0,91092.0,0.01586746]
[1767532988323,0.0109767,91102.0,91093.0,0.01097779]
[1767532988533,0.01097658,91103.0,91094.0,0.05932183]
[1767532988743,0.0109767,91102.0,91092.0,0.06586688]
[1767532989115,0.01097682,91101.0,91089.0,0.23216408]
[1767532989325,0.01097682,91101.0,91091.0,0.06586806]
[1767532989730,0.06586032,91102.0,91093.0,0.01097779]
[1767532989931,0.0005528,91104.0,91077.0,0.01097972]
[1767532990140,0.01097839,91088.0,91081.0,0.04834416]
[1767532990342,0.06586947,91090.0,91081.0,0.04834416]
[1767532990535,0.06578132,91090.0,91081.0,0.04834416]
[1767532990773,0.01097815,91090.0,91080.0,0.06587612]
[1767532991097,0.01097815,91090.0,91081.0,0.01097923]
[1767532991451,0.01097827,91089.0,91079.0,0.02196]
[1767532991668,0.01089012,91089.0,91080.0,0.01097935]
[1767532991865,0.01089012,91089.0,91079.0,0.03293947]
[1767532992060,0.01097839,91088.0,91079.0,0.03293947]
[1767532992257,0.01089012,91089.0,91080.0,0.01097935]
[1767532992654,0.06586894,91090.0,91080.0,0.01097935]
[1767532993430,0.06586894,91090.0,91080.0,0.06587595]
[1767532993660,0.01097815,91090.0,91080.0,0.01097935]
[1767532994269,0.06586912,91090.0,91081.0,0.04834416]
[1767532994478,0.01097815,91090.0,91081.0,0.05932339]
[1767532994697,0.06586896,91090.0,91081.0,0.04834416]
[1767532994940,0.06586987,91089.0,91081.0,0.04834416]
[1767532995160,0.01097827,91089.0,91081.0,0.04834416]
[1767532995374,0.06586896,91090.0,91081.0,0.04834416]
[1767532995945,0.01097827,91089.0,91081.0,0.04834416]
[1767532997819,0.01097815,91090.0,91081.0,0.04834416]
[1767532998233,0.01097815,91090.0,91081.0,0.04424696]
[1767532998438,0.06586823,91091.0,91082.0,0.04834416]
[1767532998640,0.01097803,91091.0,91082.0,0.04834416]
[1767532998849,0.06586827,91091.0,91082.0,0.04834416]
[1767532999602,0.06586827,91091.0,91082.0,0.05932327]
[1767532999809,0.06586827,91091.0,91082.0,0.04834416]
[1767533000043,0.01097827,91089.0,91082.0,0.04834416]
[1767533000231,0.06587002,91089.0,91082.0,0.04834416]
[1767533000434,0.06587044,91088.0,91082.0,0.04834416]
[1767533000961,0.06587002,91089.0,91082.0,0.04834416]
[1767533001708,0.01097827,91089.0,91082.0,0.04834416]
[1767533002545,0.06586942,91090.0,91082.0,0.04834416]
[1767533004041,0.01097827,91089.0,91082.0,0.04834416]
[1767533005084,0.01097827,91089.0,91082.0,0.04805864]
[1767533005850,0.01097839,91088.0,91079.0,0.03293947]
[1767533006214,0.06586985,91089.0,91079.0,0.03293947]
[1767533006420,0.06586985,91089.0,91080.0,0.01069382]
[1767533006634,0.06586985,91089.0,91079.0,0.13618095]
[1767533006846,0.0657817,91089.0,91080.0,0.05932351]
[1767533007048,0.0657817,91089.0,91080.0,0.05903799]
[1767533007492,0.01097851,91087.0,91080.0,0.04805864]
[1767533007730,0.0658715,91087.0,91080.0,0.04805864]
[1767533007917,0.01097863,91086.0,91080.0,0.04805864]
[1767533008076,0.01097851,91087.0,91080.0,0.04805864]
[1767533008288,0.01097839,91088.0,91080.0,0.04805864]
[1767533008857,0.06587155,91088.0,91080.0,0.04805864]
[1767533009211,0.05489641,91081.0,91079.0,0.02196]
[1767533009414,0.05489641,91081.0,91075.0,0.04834416]
[1767533009415,0.01097935,91080.0,91075.0,0.04834416]
[1767533009594,0.06587577,91082.0,91075.0,0.04834416]
[1767533009792,0.0658745,91083.0,91075.0,0.04834416]
[1767533010042,0.06587443,91083.0,91075.0,0.04834416]
[1767533010883,0.0548958,91082.0,91075.0,0.04834416]
[1767533011088,0.05489911,91077.0,91075.0,0.04834416]
[1767533011286,0.06587877,91078.0,91077.0,0.000999]
[1767533011512,0.06587877,91078.0,91075.0,0.02626019]
[1767533011722,0.01097972,91077.0,91072.0,0.00010834]
[1767533011924,0.06587742,91079.0,91072.0,0.00010834]
[1767533012073,0.01097947,91079.0,91072.0,0.00010834]
[1767533014344,0.01097923,91081.0,91072.0,0.04697825]
[1767533014542,0.06587657,91080.0,91072.0,0.04697825]
[1767533014783,0.01097935,91080.0,91072.0,0.04697825]
[1767533015018,0.01097935,91080.0,91072.0,0.04597925]
[1767533015019,0.01097959,91078.0,91072.0,0.04597925]
[1767533015242,0.01097972,91077.0,91072.0,0.04597925]
[1767533015449,0.06587768,91078.0,91072.0,0.04597925]
[1767533015844,0.01097972,91077.0,91072.0,0.04597925]
[1767533015997,0.01089156,91077.0,91072.0,0.04597925]
[1767533016207,0.23056433,91081.0,91072.0,0.04597925]
[1767533016208,0.01097887,91084.0,91077.0,0.04786891]
[1767533016410,0.02196,91083.0,91077.0,0.04786891]
[1767533016828,0.02196,91083.0,91077.0,0.04686991]
[1767533017224,0.02196,91083.0,91077.0,0.04658439]
[1767533017428,0.020961,91083.0,91077.0,0.04658439]
[1767533018444,0.03293875,91085.0,91077.0,0.04658439]
[1767533018647,0.06587199,91086.0,91082.0,0.04686991]
[1767533019074,0.06578383,91086.0,91082.0,0.04686991]
[1767533019280,0.01097875,91085.0,91082.0,0.04686991]
[1767533019457,0.01089058,91085.0,91082.0,0.04686991]
[1767533019658,0.01097887,91084.0,91076.0,0.04686991]
[1767533020763,0.06587338,91084.0,91076.0,0.04686991]
[1767533020971,0.01097899,91083.0,91076.0,0.04686991]
[1767533021169,0.01089058,91085.0,91076.0,0.04686991]
[1767533021489,0.06578484,91085.0,91076.0,0.04686991]
[1767533021692,0.01097899,91083.0,91076.0,0.04686991]
[1767533021853,0.01097887,91084.0,91076.0,0.04686991]
[1767533022048,0.06587333,91084.0,91076.0,0.04686991]
[1767533022456,0.01097899,91083.0,91070.0,0.10177231]
[1767533022658,0.01097923,91081.0,91071.0,0.05490219]
[1767533022887,0.06587561,91081.0,91071.0,0.06588263]
[1767533023094,0.05489621,91081.0,91071.0,0.04686991]
[1767533023395,0.06587544,91081.0,91071.0,0.1127524]
[1767533023602,0.01097923,91081.0,91072.0,0.04686991]
[1767533024166,0.01088897,91081.0,91072.0,0.05785023]
[1767533024367,0.06587474,91082.0,91073.0,0.0109802]
[1767533024579,0.06587474,91082.0,91072.0,0.11275184]
[1767533025218,0.06587616,91080.0,91072.0,0.04587091]
[1767533025426,0.06587551,91081.0,91072.0,0.04587091]
[1767533025675,0.01097935,91080.0,91071.0,0.06588252]
[1767533025842,0.01097935,91080.0,91071.0,0.01098044]
[1767533026256,0.06587551,91081.0,91071.0,0.01098044]
[1767533026450,0.01097923,91081.0,91072.0,0.01098032]
[1767533026734,0.01097923,91081.0,91071.0,0.04686991]
[1767533026929,0.01097923,91081.0,91072.0,0.04686991]
[1767533027101,0.01097935,91080.0,91072.0,0.04686991]
[1767533027318,0.06587555,91081.0,91072.0,0.04686991]
[1767533027496,0.01097935,91080.0,91072.0,0.04686991]
[1767533027698,0.06587555,91081.0,91072.0,0.04686991]
[1767533027906,0.06597332,91083.0,91074.0,0.04686991]
[1767533028135,0.01097911,91082.0,91074.0,0.04686991]
[1767533028344,0.01107807,91083.0,91074.0,0.04686991]
[1767533028531,0.06597316,91083.0,91074.0,0.04686991]
[1767533028781,9.908e-05,91083.0,91074.0,0.11275009]
[1767533028911,9.908e-05,91083.0,91075.0,0.04686991]
[1767533029118,9.908e-05,91083.0,91075.0,0.05784987]
[1767533029344,9.908e-05,91083.0,91076.0,0.04686991]
[1767533031119,0.01107807,91083.0,91076.0,0.04686991]
[1767533032108,9.908e-05,91083.0,91076.0,0.04686991]
[1767533032462,0.06597326,91083.0,91076.0,0.04686991]
[1767533033444,0.06597326,91083.0,91074.0,0.01098008]
[1767533033650,0.06597326,91083.0,91073.0,0.0109802]
[1767533033853,0.06597326,91083.0,91074.0,0.01098008]
[1767533034055,0.01097911,91082.0,91073.0,0.0109802]
[1767533034231,0.06588299,91083.0,91074.0,0.01098008]
[1767533034478,0.0109878,91083.0,91074.0,0.01098008]
[1767533034691,8.81e-06,91083.0,91075.0,0.01097996]
[1767533034891,8.81e-06,91083.0,91076.0,0.01097984]
[1767533035296,8.81e-06,91083.0,91075.0,0.06587975]
[1767533037406,8.81e-06,91083.0,91076.0,0.06587861]
[1767533037579,0.02196,91086.0,91076.0,0.06587901]
[1767533037761,0.03293863,91086.0,91077.0,0.01097972]
[1767533037982,0.03293863,91086.0,91075.0,0.04273816]
[1767533038196,0.08783188,91086.0,91077.0,0.04686991]
[1767533038398,0.03783188,91086.0,91077.0,0.04686991]
[1767533038714,0.01097875,91085.0,91077.0,0.04686991]
[1767533039258,0.06578241,91085.0,91077.0,0.04686991]
[1767533039837,0.06578241,91085.0,91077.0,0.02376468]
[1767533040571,0.01088848,91085.0,91077.0,0.02376468]
[1767533041462,0.01097863,91086.0,91076.0,0.02196]
[1767533041683,0.01097767,91094.0,91078.0,0.04519439]
[1767533041915,0.02196,91093.0,91086.0,0.000999]
[1767533042125,0.01097767,91094.0,91083.0,0.06587353]
[1767533042126,0.02196,91092.0,91083.0,0.06587351]
[1767533042682,0.01097803,91091.0,91081.0,0.05489606]
[1767533042890,0.0878275,91092.0,91081.0,0.06587529]
[1767533043309,0.0878275,91092.0,91083.0,0.01097899]
[1767533043310,0.02196,91092.0,91083.0,0.01097899]
[1767533043508,0.02196,91092.0,91084.0,0.01097887]
[1767533043719,0.02187184,91092.0,91084.0,0.01097887]
[1767533044974,0.01097803,91091.0,91081.0,0.06587539]
[1767533045135,0.06586828,91091.0,91081.0,0.01097923]
[1767533045337,0.06586828,91091.0,91081.0,0.05617362]
[1767533045536,0.01097803,91091.0,91082.0,0.01097911]
[1767533046068,0.01097803,91091.0,91081.0,0.11106958]
[1767533046642,0.08773975,91092.0,91082.0,0.01097911]
[1767533046840,0.01097803,91091.0,91082.0,0.01097911]
[1767533047075,0.01097815,91090.0,91081.0,0.05617362]
[1767533047252,0.08773975,91092.0,91082.0,0.01097911]
[1767533047634,0.01097803,91091.0,91082.0,0.01097911]
[1767533047834,0.03284975,91092.0,91082.0,0.06587457]
[1767533048414,0.0877394,91092.0,91082.0,0.01097911]
[1767533048614,0.01097803,91091.0,91081.0,0.11106962]
[1767533048834,0.01097803,91091.0,91082.0,0.04519439]
[1767533049024,0.0877394,91092.0,91082.0,0.0561735]
[1767533049447,0.03284975,91092.0,91083.0,0.01097899]
[1767533049630,0.08773933,91092.0,91082.0,0.11106899]
[1767533051417,0.02187184,91092.0,91083.0,0.01097899]
[1767533051616,0.06586561,91096.0,91085.0,0.01097875]
[1767533051834,0.02196,91095.0,91088.0,0.01097839]
[1767533052056,0.02201549,91095.0,91086.0,0.06587172]
[1767533052252,0.02201549,91095.0,91087.0,0.01097851]
[1767533052461,0.02201549,91095.0,91087.0,0.06587101]
[1767533053246,0.02201549,91095.0,91087.0,0.01097851]
[1767533053440,0.02201549,91095.0,91086.0,0.06587172]
[1767533053579,0.02201549,91095.0,91087.0,0.01097851]
[1767533053774,0.02201549,91095.0,91088.0,0.06586978]
[1767533054578,0.02201549,91095.0,91089.0,0.01097827]
[1767533054888,0.00572715,91102.0,91095.0,0.000999]
[1767533055294,0.0005528,91104.0,91095.0,0.01097755]
[1767533055541,0.0005528,91104.0,91095.0,0.06586482]
[1767533055925,0.0005528,91104.0,91096.0,0.01097743]
[1767533056139,8e-07,91104.0,91098.0,0.01097718]
[1767533056307,8e-07,91104.0,91097.0,0.06586335]
[1767533056942,8e-07,91104.0,91098.0,0.01097718]
[1767533057192,8e-07,91104.0,91099.0,0.05488534]
[1767533057706,8e-07,91104.0,91101.0,0.01097682]
[1767533058011,8e-07,91104.0,91099.0,0.01097706]
[1767533058367,0.01097562,91111.0,91097.0,0.0658634]
[1767533058368,0.01097502,91116.0,91105.0,0.01097634]
[1767533058571,0.02196,91114.0,91107.0,0.0109761]
[1767533058796,0.02196,91114.0,91108.0,0.05487979]
[1767533058960,0.02196,91114.0,91107.0,0.06585635]
[1767533059158,0.02196,91114.0,91107.0,0.0109761]
[1767533059561,0.02196,91114.0,91107.0,0.0658566]
[1767533059815,0.02196,91114.0,91108.0,0.01097598]
[1767533061028,0.02196,91114.0,91109.0,0.01097586]
[1767533061169,0.02196,91115.0,91109.0,0.01097586]
[1767533061375,0.0004,91118.0,91109.0,0.01097586]
[1767533061580,0.02196,91115.0,91109.0,0.01097586]
[1767533062016,0.0004,91118.0,91110.0,0.01097574]
[1767533062216,0.02196,91117.0,91109.0,0.01097586]
[1767533062650,0.02196,91117.0,91104.0,0.05488233]
[1767533062857,0.02196,91116.0,91108.0,0.05487935]
[1767533063267,0.02196,91116.0,91109.0,0.01097586]
[1767533063466,0.05017914,91118.0,91109.0,0.01097586]
[1767533063649,0.02196,91115.0,91108.0,0.06585572]
[1767533063846,0.02196,91115.0,91108.0,0.01097598]
[1767533064252,0.02196,91115.0,91109.0,0.05487932]
[1767533064451,0.02196,91116.0,91109.0,0.05487932]
[1767533064659,0.02196,91116.0,91110.0,0.06585441]
[1767533064856,0.02196,91116.0,91110.0,0.01097574]
[1767533065259,0.0004,91118.0,91110.0,0.01097574]
[1767533065648,0.0004,91118.0,91109.0,0.11104845]
[1767533066048,0.0278386,91122.0,91112.0,0.05487751]
[1767533066250,0.03881289,91122.0,91112.0,0.06585301]
[1767533066455,0.01097441,91121.0,91111.0,0.05617001]
[1767533066658,0.03308709,91122.0,91112.0,0.0109755]
[1767533067079,0.01097441,91121.0,91112.0,0.0109755]
[1767533067274,0.01097441,91121.0,91112.0,0.04519439]
[1767533067476,0.01097441,91121.0,91107.0,0.0109761]
[1767533067477,0.000952,91112.0,91109.0,0.04519439]
[1767533067870,0.01097477,91118.0,91109.0,0.04519439]
[1767533068068,0.0109749,91117.0,91109.0,0.04519439]
[1767533069205,0.01097477,91118.0,91109.0,0.04519439]
[1767533069706,0.01097477,91118.0,91109.0,0.05617025]
[1767533069854,0.06584796,91119.0,91109.0,0.05617025]
[1767533070052,0.01097477,91118.0,91109.0,0.04519439]
[1767533070251,0.06584723,91120.0,91109.0,0.11104929]
[1767533071232,0.01097465,91119.0,91109.0,0.11104929]
[1767533071372,0.01097465,91119.0,91109.0,0.05617025]
[1767533071577,0.01097441,91121.0,91110.0,0.05487817]
[1767533071786,0.00010305,91121.0,91111.0,0.01097562]
[1767533071982,0.01107746,91121.0,91110.0,0.11442043]
[1767533072180,0.01107746,91121.0,91111.0,0.06585366]
[1767533072562,0.01107746,91121.0,91111.0,0.01097562]
[1767533072767,0.01107746,91121.0,91110.0,0.05954226]
[1767533073236,0.05487269,91120.0,91110.0,0.05954226]
[1767533073756,0.06594972,91121.0,91110.0,0.05954226]
[1767533074120,0.01107746,91121.0,91112.0,0.0109755]
[1767533074327,0.01107746,91121.0,91111.0,0.01097562]
[1767533074525,0.01097453,91120.0,91110.0,0.11442071]
[1767533074927,0.01107746,91121.0,91111.0,0.06585365]
[1767533075126,0.01107746,91121.0,91111.0,0.06556815]
[1767533075486,0.01107746,91121.0,91111.0,0.01069012]
[1767533075917,0.01097453,91120.0,91110.0,0.11442071]
[1767533076218,0.0659497,91121.0,91111.0,0.01097562]
[1767533076497,0.01097453,91120.0,91110.0,0.11442071]
[1767533076646,0.01097453,91120.0,91110.0,0.05954226]
[1767533077084,0.01097453,91120.0,91110.0,0.11442065]
[1767533077602,0.0659497,91121.0,91111.0,0.01097562]
[1767533078260,0.01097453,91120.0,91111.0,0.01097562]
[1767533078467,0.01097453,91120.0,91110.0,0.11442065]
[1767533079227,0.06584726,91120.0,91110.0,0.05954226]
[1767533079607,0.06594959,91121.0,91110.0,0.11442076]
[1767533079934,0.01107746,91121.0,91111.0,0.01097562]
[1767533080211,0.01097453,91120.0,91110.0,0.05954226]
[1767533080373,0.06584771,91120.0,91110.0,0.05954226]
[1767533081196,0.06594956,91121.0,91110.0,0.11442056]
[1767533081371,0.06594956,91121.0,91111.0,0.01097562]
[1767533081806,0.01097453,91120.0,91110.0,0.11442056]
[1767533082584,0.01097465,91119.0,91110.0,0.04856652]
[1767533082985,0.06584737,91120.0,91110.0,0.01097574]
[1767533083297,0.01097453,91120.0,91110.0,0.01097574]
[1767533083501,0.01097465,91119.0,91107.0,0.0548802]
[1767533083760,0.01097477,91118.0,91108.0,0.01097598]
[1767533084461,0.01097562,91111.0,91102.0,0.02196]
[1767533084580,0.01097574,91110.0,91103.0,0.02196]
[1767533084782,0.06585476,91111.0,91103.0,0.02196]
[1767533085024,0.0562508,91109.0,91103.0,0.02196]
[1767533085238,0.04527494,91107.0,91098.0,0.01097718]
[1767533085442,0.06585447,91110.0,91100.0,0.01097694]
[1767533085579,0.04527494,91109.0,91099.0,0.03174228]
[1767533085786,0.06585447,91110.0,91100.0,0.05957057]
[1767533086197,0.01269515,91109.0,91107.0,0.00065815]
[1767533086397,0.01097538,91113.0,91108.0,0.04859363]
[1767533086840,0.06585171,91114.0,91108.0,0.04859363]
[1767533087439,0.06585239,91113.0,91108.0,0.04859363]
[1767533087627,0.0109755,91112.0,91108.0,0.04859363]
[1767533088035,0.0109755,91112.0,91108.0,0.04830814]
[1767533088691,0.01097562,91111.0,91108.0,0.04730914]
[1767533089038,0.06585321,91112.0,91108.0,0.04730914]
[1767533089562,0.01097562,91111.0,91108.0,0.04730914]